[Event "44th Chess Olympiad Open 2022"]
[Site "Chennai"]
[Date "2022.08.01"]
[Round "4.17"]
[White "Diaz Rosas, Julio Cesar"]
[Black "Paichadze, Luka"]
[Result "1/2-1/2"]
[WhiteElo "2328"]
[BlackElo "2561"]
[Annotator "TA"]
[PlyCount "141"]
[EventDate "2022.??.??"]
[TimeControl "60"]

{[%evp 11,141,-5,9,6,35,36,37,21,29,30,26,31,57,14,28,-22,107,-7,-16,-7,-16,
-23,-24,-27,-21,-35,-33,-72,-18,-10,-8,-28,-40,-14,0,-14,0,0,-22,-18,0,-51,-48,
-47,0,-10,-10,-15,0,-40,-40,-74,-73,-75,-46,-51,-36,-35,-33,-50,-39,-66,-64,
-66,-66,-102,0,-62,-65,-57,-49,-47,-32,-31,-22,-31,-28,-37,-23,-19,-5,-5,-18,
-21,5,0,0,0,0,-22,-22,-22,-22,-22,-22,-22,-22,-22,-22,-22,-22,-22,-21,-21,-21,
-21,-21,-21,-21,-21,-21,-21,-21,-21,-8,-8,-8,-8,-8,-21,-21,-21,-21,-21,-21,-21,
-21,-21,-21,-21,3,3]} 1. d4 {[%emt 0:00:31]} Nf6 {[%emt 0:00:08]} 2. c4 {
[%emt 0:00:18]} e6 {[%emt 0:00:04]} 3. Nc3 {[%emt 0:00:36]} Bb4 {[%emt 0:00:10]
} 4. a3 {[%emt 0:01:43]} Bxc3+ {[%emt 0:00:16]} 5. bxc3 {[%emt 0:00:05]} O-O {
[%emt 0:01:02]} 6. Bg5 {[%emt 0:02:15]} d5 {[%emt 0:00:34]} 7. e3 {[%emt 0:00:
00] E24: Nimzo-Indian: Sämisch: Unusual Black 5th moves and 5...c5 sidelines.}
Nbd7 {[%emt 0:02:01]} 8. cxd5 {[%emt 0:07:20]} exd5 {[%emt 0:03:43]} 9. Bd3 {
[%emt 0:00:11] White is slightly better.} c5 {[%emt 0:05:51]} 10. Ne2 {[%emt 0:
00:00]} Qa5 {[%emt 0:00:25]} 11. O-O {[%emt 0:13:17] [#]} Ne4 $146 {[%emt 0:00:
00]} ({Predecessor:} 11... c4 12. Bc2 Re8 13. f3 h6 14. Bxf6 Nxf6 15. Qd2 Bd7
16. Rfe1 Re7 17. Ng3 h5 {1-0 (24) Aczel,G (2506)-Blaho,S (2102) Topolcany 2020}
) 12. Bh4 {[%emt 0:06:57]} Re8 {[%emt 0:11:09]} 13. Ng3 {[%emt 0:11:16]} (13.
a4 $142) 13... Qxc3 {[%emt 0:07:22]} (13... Nxg3 $11 14. fxg3 (14. Bxg3 c4 $11)
14... Nf8) 14. Nxe4 {[%emt 0:06:50]} (14. Bxe4 $16 dxe4 15. Nf5) 14... dxe4 $11
{[%emt 0:00:07]} 15. Bb5 {[%emt 0:00:30]} a6 {[%emt 0:11:43]} 16. Rc1 {[%emt 0:
00:00]} Qxa3 {[%emt 0:09:02]} 17. Bc4 {[%emt 0:07:16] [#] Strongly threatening
Qh5.} Nf8 {[%emt 0:11:04]} 18. dxc5 {[%emt 0:05:37]} Be6 {[%emt 0:02:57]} 19.
Be2 {[%emt 0:00:10]} Qa2 {[%emt 0:08:21]} (19... Qb4 $17) 20. Rc2 {[%emt 0:00:
00]} Qa4 {[%emt 0:00:26] White must now prevent ...Bb3.} 21. Qd2 {[%emt 0:00:
00]} Ng6 {[%emt 0:03:11]} 22. Bg3 {[%emt 0:00:14]} Rad8 {[%emt 0:00:28]} 23.
Qc1 {[%emt 0:00:34]} Ne7 {[%emt 0:00:45]} 24. Rb2 {[%emt 0:00:35]} Bd5 {
[%emt 0:02:49]} 25. Qb1 {[%emt 0:02:05]} Qd7 {[%emt 0:04:36]} 26. Rc1 {[%emt 0:
00:00]} ({White should play} 26. Rd2 $11) 26... Bc6 $15 {[%emt 0:01:46]} 27. h3
{[%emt 0:00:11]} Nd5 {[%emt 0:03:34]} (27... Nf5 $15 {might be stronger.} 28.
Bf4 h6) 28. Bc4 {[%emt 0:00:47]} Qc8 {[%emt 0:02:01]} 29. Qa1 {[%emt 0:00:42]}
Qf5 {[%emt 0:00:54]} 30. Qb1 {[%emt 0:00:44]} Rd7 {[%emt 0:00:42]} 31. Be2 {
[%emt 0:00:25] Bg4 is the strong threat.} h5 {[%emt 0:00:12] Against Bg4} 32.
Qa2 {[%emt 0:01:01]} Nc7 {[%emt 0:00:57]} 33. Qa5 {[%emt 0:01:59]} Nb5 {
[%emt 0:01:14]} 34. Rd2 {[%emt 0:01:06]} Ree7 {[%emt 0:00:36]} 35. Rdc2 {
[%emt 0:01:08]} Kh7 {[%emt 0:00:30]} 36. Qe1 {[%emt 0:01:08]} Rd5 {[%emt 0:00:
00]} 37. Kh1 {[%emt 0:02:27]} Qf6 {[%emt 0:00:23]} 38. Bf4 {[%emt 0:00:48] [#]}
Na3 {[%emt 0:00:52]} (38... Nd4 $1 $17 39. Rd2 Nxe2 40. Qxe2 Red7) 39. Rd2 {
[%emt 0:01:43]} ({White should try} 39. Ra2 $11 Nb5 40. Kg1) 39... Rxd2 {
[%emt 0:00:36]} 40. Qxd2 {[%emt 0:00:03]} h4 {[%emt 0:00:52]} 41. Bg4 {[%emt 0:
36:09]} Nb5 {[%emt 0:30:49] Inhibits Qd6.} 42. Qd8 {[%emt 0:00:21][%cal Yg4f5]}
Re8 {[%emt 0:00:00]} 43. Qxf6 {[%emt 0:00:00]} gxf6 {[%emt 0:00:00]} 44. Bf5+ {
[%emt 0:00:00]} Kh8 {[%emt 0:00:00]} 45. g3 $1 {[%emt 0:00:00]} hxg3 {[%emt 0:
00:00] The position is equal.} 46. Bxg3 {[%emt 0:00:00] aiming for Bh4. This
bishop pair is nice.} Kg7 {[%emt 0:00:00]} 47. Kh2 {[%emt 0:00:00]} a5 {
[%emt 0:00:00]} 48. Ra1 {[%emt 0:00:00]} a4 {[%emt 0:00:00]} 49. Rxa4 {[%emt 0:
00:00]} Nd6 {[%emt 0:00:00] Inhibits Rc4.} 50. cxd6 {[%emt 0:00:00]} Bxa4 $11 {
[%emt 0:00:00] Endgame KRB-KB} 51. d7 $1 {[%emt 0:00:00]} Rd8 {[%emt 0:00:00]}
52. Bc7 {[%emt 0:00:00]} Rxd7 {[%emt 0:00:00]} 53. Bxd7 {[%emt 0:00:00]} Bxd7 {
[%emt 0:00:00] KB-KB} 54. Bb6 {[%emt 0:00:00]} Kg6 {[%emt 0:00:00]} 55. Kg3 {
[%emt 0:00:00]} Kg5 {[%emt 0:00:00]} 56. h4+ {[%emt 0:00:00]} Kh5 {[%emt 0:00:
00]} 57. Bd4 {[%emt 0:00:00]} f5 {[%emt 0:00:00]} 58. Bf6 {[%emt 0:00:00]} b5 {
[%emt 0:00:00]} 59. Be7 {[%emt 0:00:00]} Bc8 {[%emt 0:00:00]} 60. Kf4 {[%emt 0:
00:00]} Be6 {[%emt 0:00:09]} 61. Kg3 {[%emt 0:00:00]} Kg6 {[%emt 0:01:09]} 62.
Kf4 {[%emt 0:00:00]} f6 {[%emt 0:03:07]} 63. Bb4 {[%emt 0:00:00]} Kh5 {[%emt 0:
00:59]} 64. Kg3 {[%emt 0:00:00]} Bc4 {[%emt 0:00:00]} 65. Kf4 {[%emt 0:00:00]}
Kxh4 {[%emt 0:01:28]} 66. Kxf5 {[%emt 0:00:00]} Bd3 {[%emt 0:00:10]} 67. Kxf6 {
[%emt 0:00:00]} Kg4 {[%emt 0:00:06]} 68. Ke5 {[%emt 0:00:00]} Kf3 {[%emt 0:00:
06]} 69. Kd4 {[%emt 0:00:00]} Kxf2 {[%emt 0:00:00]} 70. Bc5 {[%emt 0:00:00]} b4
{[%emt 0:00:47]} 71. Bxb4 {[%emt 0:00:00] Weighted Error Value: White=0.15 
(very precise) /Black=0.14 (very precise)} 1/2-1/2

[Event "44th Chess Olympiad Open 2022"]
[Site "Chennai"]
[Date "2022.08.01"]
[Round "4.18"]
[White "Mastrovasilis, Dimitrios"]
[Black "Petkov, Momchil"]
[Result "0-1"]
[WhiteElo "2599"]
[BlackElo "2510"]
[Annotator "TA"]
[PlyCount "106"]
[EventDate "2022.??.??"]
[TimeControl "60"]

{[%evp 19,106,0,0,0,0,-13,7,0,10,0,0,7,13,0,28,26,27,24,31,30,24,0,13,12,32,22,
57,43,47,56,56,36,30,0,0,0,0,0,6,-25,-16,-171,-172,-174,-174,-169,-174,-173,
-168,-171,-167,-222,-222,-283,-282,-268,-265,-226,-178,-389,-361,-703,-683,
-694,-656,-802,-806,-821,-812,-724,-626,-889,-834,-4134,-2970,-3820,-1307,
-29976,-29977,-29977,-29978,-29984,-29984,-29984,-29985,-29991,-29992,-29992,
-29993]} 1. e4 {[%emt 0:00:04]} c5 {[%emt 0:00:14]} 2. Nf3 {[%emt 0:00:09]} d6
{[%emt 0:00:08]} 3. Bb5+ {[%emt 0:00:11]} Nd7 {[%emt 0:00:12]} 4. O-O {[%emt 0:
00:00]} a6 {[%emt 0:00:53]} 5. Bxd7+ {[%emt 0:00:23]} Bxd7 {[%emt 0:00:19]
[%cal Yc8d7,Yd7c6,Yc6e4]} 6. c3 {[%emt 0:00:21]} Nf6 {[%emt 0:02:00]} 7. Re1 {
[%emt 0:00:13]} Bc6 {[%emt 0:02:59]} 8. d4 {[%emt 0:00:22]} Bxe4 {[%emt 0:00:
16]} 9. Bg5 {[%emt 0:00:17]} Bc6 {[%emt 0:00:29] 9...d5 is a critical line.}
10. Bxf6 {[%emt 0:00:40]} gxf6 {[%emt 0:00:06]} 11. d5 {[%emt 0:00:15] B51:
Sicilian: Moscow Variation (3 Bb5+) without 3...Bd7.} Bd7 {[%emt 0:00:15]} 12.
Nbd2 {[%emt 0:00:20][%cal Yb1d2,Yd2e4,Ye4c3,Yc3d5]} e5 {[%emt 0:01:36]} 13.
dxe6 $1 {[%emt 0:02:07] The position is equal.} Bxe6 {[%emt 0:00:14]} 14. Ne4 {
[%emt 0:01:16]} Be7 {[%emt 0:02:54] [#]} 15. c4 $146 {[%emt 0:01:48]} ({
Predecessor:} 15. Nh4 Qd7 16. Qf3 O-O-O 17. Ng3 Rhg8 18. Nhf5 Rg5 19. h4 Rg6
20. b4 d5 21. Qe3 {0-1 (38) Los,S (2320)-Cifuentes Parada, R (2480)
Netherlands 1993}) 15... Qd7 {[%emt 0:31:41]} 16. Qc2 {[%emt 0:08:26] White
has compensation.} O-O-O {[%emt 0:03:21]} (16... f5 $5 {[%cal Rf5e4]} 17. Nc3
O-O-O $11) 17. Rad1 {[%emt 0:06:16] Black must now prevent Nxc5.} Qc6 {[%emt 0:
04:15]} 18. Nc3 $1 {[%emt 0:02:12]} Rde8 {[%emt 0:00:00][%cal Yd8e8,Ye8g8,
Yg8g2,Yg2g4,Yg4f4]} 19. Nd5 {[%emt 0:13:39]} Bd8 {[%emt 0:01:11]} 20. Re3 {
[%emt 0:16:14]} Kb8 {[%emt 0:11:22]} 21. b3 {[%emt 0:12:48]} h5 {[%emt 0:07:28]
} 22. Qc3 {[%emt 0:06:47]} Reg8 {[%emt 0:00:00]} 23. Nxf6 {[%emt 0:11:19]} Bxf6
{[%emt 0:00:15]} 24. Qxf6 {[%emt 0:00:02]} h4 $1 {[%emt 0:00:14]} 25. Qf4 {
[%emt 0:07:47]} h3 {[%emt 0:00:27]} 26. Rxd6 {[%emt 0:02:09]} Rxg2+ {[%emt 0:
00:35]} 27. Kf1 {[%emt 0:00:02] Hoping for Rdxe6+.} Qc7 {[%emt 0:00:07]} 28.
Red3 {[%emt 0:01:29]} Bc8 {[%emt 0:03:34]} 29. R3d5 {[%emt 0:01:14]} (29. Qe5
$5 {[%cal Re5h8]} Rf8 30. R6d5 $11) 29... Re8 $36 {[%emt 0:03:38] Black is
more active.} 30. Rxc5 $2 {[%emt 0:00:00] Now White is beyond hope.} Rg4 $19 {
[%emt 0:03:06] Dancing on a razor blade.} ({And not} 30... Rxf2+ 31. Kxf2 Qxc5+
32. Rd4+ Ka8 33. Qf6 $15) 31. Rxc7 {[%emt 0:01:46]} Rxf4 {[%emt 0:00:12]} 32.
Rxc8+ {[%emt 0:00:24]} Kxc8 {[%emt 0:00:17] Endgame KRR-KRN} 33. Ng5 {[%emt 0:
00:36]} Rh4 {[%emt 0:03:58][%cal Yf7f6]} 34. Rd3 {[%emt 0:00:25] [#]} Rd8 $1 {
[%emt 0:05:00]} 35. Rxd8+ {[%emt 0:00:35]} (35. Rg3 {was necessary.}) 35...
Kxd8 {[%emt 0:00:00]} 36. Nxf7+ {[%emt 0:00:08] KR-KN} Ke7 {[%emt 0:01:27]} 37.
Ng5 {[%emt 0:00:00]} Kf6 {[%emt 0:00:28]} 38. Nf3 {[%emt 0:00:02]} Rh8 {
[%emt 0:01:34]} 39. Ng1 $2 {[%emt 0:00:56]} (39. Ke2) 39... Ke5 {[%emt 0:00:57]
} 40. Ke2 $2 {[%emt 0:00:00]} (40. Nf3+ Ke4 41. Ke2) 40... Kd4 {[%emt 0:00:38]}
41. Kd2 {[%emt 0:00:00]} Rf8 {[%emt 0:08:19]} 42. f4 {[%emt 0:15:54]} Rh8 {
[%emt 0:00:18]} 43. f5 {[%emt 0:01:35]} Ke5 {[%emt 0:00:56]} 44. Ke3 {[%emt 0:
00:53]} Kxf5 {[%emt 0:00:00] Strongly threatening ...Kg4.} 45. Kd4 {[%emt 0:01:
09]} Rd8+ {[%emt 0:09:04]} 46. Kc5 {[%emt 0:01:27]} Rd3 {[%emt 0:03:30]} 47.
Kb6 {[%emt 0:01:25] [#]} Rg3 $3 {[%emt 0:00:06]} 48. Nxh3 {[%emt 0:02:17]} (48.
hxg3 h2) 48... Rxh3 {[%emt 0:00:05] Black mates.} 49. Kxb7 {[%emt 0:00:05]}
Rxh2 {[%emt 0:00:00] KR-K3P} 50. a4 {[%emt 0:02:01]} a5 {[%emt 0:03:25]} 51.
Kb6 {[%emt 0:00:35]} Rb2 {[%emt 0:00:12]} 52. Kxa5 {[%emt 0:00:12]} Rxb3 {
[%emt 0:00:04]} 53. Ka6 {[%emt 0:00:08]} Ke6 {[%emt 0:00:10] Weighted Error
Value: White=0.70/Black=0.03 (flawless)} 0-1

[Event "44th Chess Olympiad Open 2022"]
[Site "Chennai"]
[Date "2022.08.01"]
[Round "4.18"]
[White "Banikas, Hristos"]
[Black "Georgiev, Todor"]
[Result "1-0"]
[WhiteElo "2598"]
[BlackElo "2272"]
[Annotator "TA"]
[PlyCount "70"]
[EventDate "2022.??.??"]
[TimeControl "60"]

{[%evp 17,70,34,32,35,22,33,50,29,33,29,25,26,33,8,45,42,66,24,77,107,101,72,
117,138,139,149,150,60,118,95,338,196,196,197,200,131,136,132,146,131,122,129,
272,269,278,272,367,352,443,315,256,228,1097,1079,2750]} 1. d4 {[%emt 0:00:04]}
Nf6 {[%emt 0:00:26]} 2. c4 {[%emt 0:00:10]} g6 {[%emt 0:00:46]} 3. g3 {[%emt 0:
00:00]} Bg7 {[%emt 0:02:15]} 4. Bg2 {[%emt 0:00:11]} O-O {[%emt 0:03:42]} 5.
Nc3 {[%emt 0:00:50]} d6 {[%emt 0:08:52]} 6. Nf3 {[%emt 0:00:12]} Nc6 {[%emt 0:
00:00]} 7. O-O {[%emt 0:00:33]} e5 {[%emt 0:00:56]} 8. dxe5 {[%emt 0:03:28]}
dxe5 {[%emt 0:12:22] The main line 8...dxe5 scores better than 8...Nxe5.} 9.
Bg5 {[%emt 0:02:02]} Be6 {[%emt 0:02:36]} 10. Qc1 {[%emt 0:01:11] E62: King's
Indian: Fianchetto: 6...c6 and Panno Variation (6...Nc6) without ...a6.} Qc8 {
[%emt 0:08:59]} 11. Rd1 {[%emt 0:07:59]} Nd7 {[%emt 0:06:31]} 12. Nd5 {[%emt 0:
00:00] White is slightly better.} Re8 {[%emt 0:05:11]} 13. Bh6 {[%emt 0:08:06]}
f6 {[%emt 0:02:02]} 14. Bxg7 {[%emt 0:07:12]} Kxg7 {[%emt 0:02:43]} 15. b3 {
[%emt 0:02:33] [#]} a5 $146 {[%emt 0:11:12]} ({Predecessor:} 15... Nd8 16. Nd2
Nf7 17. c5 c6 18. Ne3 f5 19. b4 Nf6 20. Nec4 Bd5 21. f3 Qc7 {0-1 (39)
Yakubboev,N (2556)-Wang,H (2730) Makati 2018}) 16. Qa3 {[%emt 0:03:08]} Bg4 {
[%emt 0:06:48]} 17. Rd2 {[%emt 0:01:14]} Nf8 {[%emt 0:04:31]} (17... Bxf3 $11 {
keeps the balance.} 18. Bxf3 a4) 18. Ne1 $16 {[%emt 0:01:20] White is more
active.} h5 {[%emt 0:08:49]} 19. Rad1 {[%emt 0:05:19]} h4 {[%emt 0:01:56]} 20.
gxh4 {[%emt 0:04:05]} Nd4 {[%emt 0:02:38]} 21. f3 {[%emt 0:00:34]} Be6 {
[%emt 0:01:40]} 22. e4 {[%emt 0:05:20]} (22. e3 $16 Bxd5 23. cxd5 (23. exd4 Bf7
$16)) 22... Bf7 {[%emt 0:03:52]} ({Better is} 22... Qd8 $14) 23. Qb2 {[%emt 0:
00:00]} c6 $2 {[%emt 0:00:22] [#]} (23... c5 $16) 24. Nb6 {[%emt 0:00:11]} (24.
Nxf6 $142 $1 Kxf6 25. Rxd4) 24... Qc7 $18 {[%emt 0:00:32]} 25. Nxa8 {[%emt 0:
00:04]} Rxa8 {[%emt 0:00:08]} 26. c5 {[%emt 0:15:39][%cal Yf3f4]} Nfe6 {
[%emt 0:00:35]} 27. Nc2 {[%emt 0:00:07]} Qe7 {[%emt 0:00:48]} 28. Qc3 {[%emt 0:
00:08]} Nb5 {[%emt 0:01:02]} 29. Qe3 {[%emt 0:00:25]} Nxc5 {[%emt 0:00:00]} (
29... Rh8 $16 {might work better.} 30. Rd7 Qxc5) 30. h5 {[%emt 0:00:51]} g5 {
[%emt 0:00:45]} 31. h4 {[%emt 0:00:34]} Rh8 {[%emt 0:00:31]} 32. hxg5 {[%emt 0:
00:13] aiming for h6+.} fxg5 {[%emt 0:00:07]} 33. Bh3 {[%emt 0:00:22]} Rxh5 {
[%emt 0:00:53]} 34. Bf5 {[%emt 0:02:19]} Bg6 $2 {[%emt 0:00:41] [#]} (34... Ne6
35. Rd7 Qf6) 35. Rd7 $1 {[%emt 0:00:13]} Kf6 {[%emt 0:00:00] Weighted Error
Value: White=0.20 (precise) /Black=0.44} (35... Nxd7 36. Rxd7) 1-0

[Event "44th Chess Olympiad Open 2022"]
[Site "Chennai"]
[Date "2022.08.01"]
[Round "4.18"]
[White "Stoyanov, Tsvetan"]
[Black "Theodorou, Nikolas"]
[Result "0-1"]
[WhiteElo "2450"]
[BlackElo "2575"]
[Annotator "TA"]
[PlyCount "66"]
[EventDate "2022.??.??"]
[TimeControl "60"]

{[%evp 10,66,-15,0,-17,0,0,-44,-35,-59,-44,-26,-31,-35,-21,-31,-14,-35,-20,-50,
-35,-50,-39,-19,-35,-136,-135,-138,-119,-142,-141,-133,-127,-310,-302,-374,
-375,-354,-361,-336,-243,-424,-392,-434,-416,-733,-732,-672,-624,-1004,-1001,
-1228,-1193,-29990,-29991,-29993,-29993,-29994,-29992]} 1. e4 {[%emt 0:00:04]}
c5 {[%emt 0:00:09]} 2. Nf3 {[%emt 0:00:23]} Nc6 {[%emt 0:00:11]} 3. Bb5 {
[%emt 0:01:07]} e6 {[%emt 0:00:09]} 4. Bxc6 {[%emt 0:01:17]} bxc6 {[%emt 0:00:
00]} 5. O-O {[%emt 0:01:55]} Ne7 {[%emt 0:01:32]} 6. Re1 {[%emt 0:02:31]} Ng6 {
[%emt 0:00:11] B30: Sicilian: 2...Nc6 3 Bb5, lines without ...g6.} 7. e5 {
[%emt 0:14:18]} Be7 {[%emt 0:02:10]} 8. c4 {[%emt 0:15:22]} f6 {[%emt 0:12:09]
[#] Black is slightly better.} 9. Nc3 $146 {[%emt 0:02:13]} ({Predecessor:} 9.
h4 O-O 10. g3 Nxe5 11. Nxe5 fxe5 12. Rxe5 d6 13. Re3 e5 14. d3 Qe8 15. Rf3 {
0-1 (34) Codreanu,M (1846)-Andreev,K (1716) Bratislava 2019}) 9... fxe5 {
[%emt 0:06:20]} 10. Nxe5 {[%emt 0:00:19]} Nxe5 {[%emt 0:00:09]} 11. Rxe5 {
[%emt 0:00:05]} O-O {[%emt 0:00:07]} 12. Re1 {[%emt 0:03:06]} Bh4 {[%emt 0:00:
00]} 13. Rf1 {[%emt 0:02:35]} e5 {[%emt 0:05:30]} 14. d3 {[%emt 0:01:51]} d5 {
[%emt 0:07:03]} 15. Qe2 {[%emt 0:17:34]} Bf5 {[%emt 0:02:08]} 16. cxd5 {
[%emt 0:09:34]} cxd5 {[%emt 0:00:03]} 17. f4 {[%emt 0:00:41]} (17. b3 $15)
17... Qd7 $1 $17 {[%emt 0:14:43]} 18. Qh5 {[%emt 0:09:29]} (18. fxe5 $2 Bg4 19.
Rf3 (19. Rxf8+ $2 Rxf8 20. Qc2 Qf5 $19) 19... Rae8 $19) 18... Be7 {[%emt 0:00:
00][%cal Yh4e7,Ye7c5,Yc5d4] aiming for ...d4. Black is more active.} (18...
Bxd3 19. Rd1 e4 20. Qxh4 $15) 19. Qf3 {[%emt 0:02:17]} Rad8 {[%emt 0:00:00]}
20. fxe5 {[%emt 0:04:11]} c4 $1 {[%emt 0:05:47]} (20... Bg4 21. Qg3 $15) 21.
dxc4 {[%emt 0:05:28] Now White is beyond hope.} (21. d4 $17) 21... Bc5+ $1 $19
{[%emt 0:01:17]} 22. Kh1 {[%emt 0:01:21] Threatens to win with Bg5.} d4 {
[%emt 0:15:45]} 23. Bg5 {[%emt 0:03:32]} ({Much worse is} 23. Nd5 {[#]} Be4 $1
24. Nf6+ (24. Qe2 $2 d3 $19) 24... Rxf6 $1 25. exf6 Bxf3 26. Rxf3 Rf8 $19)
23... dxc3 {[%emt 0:04:04]} 24. Qxc3 {[%emt 0:00:26]} ({Don't play} 24. Bxd8
Bd3 25. Bf6 (25. Qd5+ $2 Qxd5 26. Rxf8+ Kxf8 $19) 25... Bxf1 26. Qxc3 Qd3 27.
Qxd3 Bxd3 $19) 24... Rde8 {[%emt 0:01:15] Hoping for ...Be4.} 25. h3 $2 {
[%emt 0:00:50]} (25. Be3 {was necessary.} Bxe3 26. Qxe3) 25... Bd4 {[%emt 0:00:
00]} 26. Qa3 {[%emt 0:00:14]} Be4 {[%emt 0:01:32][%cal Ye4g2] White must now
prevent ...Bxg2+! This bishop pair is nice.} 27. Rae1 {[%emt 0:00:36]} (27. Qg3
$142) 27... Rxf1+ {[%emt 0:02:38]} 28. Rxf1 {[%emt 0:00:00]} h6 {[%emt 0:00:00]
} 29. Bc1 {[%emt 0:01:07]} Qc6 {[%emt 0:00:52]} 30. Qg3 {[%emt 0:01:11]} Re6 {
[%emt 0:01:02] ( -> ...Rg6)} 31. Re1 {[%emt 0:00:00]} Rg6 {[%emt 0:01:16]
Black mates.} 32. Qh4 {[%emt 0:00:01]} Bxg2+ {[%emt 0:00:45]} 33. Kh2 {[%emt 0:
00:00]} Bf1 {[%emt 0:00:24] Weighted Error Value: White=0.96/Black=0.06 
(flawless)} 0-1

[Event "44th Chess Olympiad Open 2022"]
[Site "Chennai"]
[Date "2022.08.01"]
[Round "4.18"]
[White "Tashev, Aleksandar"]
[Black "Ioannidis, Evgenios"]
[Result "0-1"]
[WhiteElo "2262"]
[BlackElo "2459"]
[Annotator "TA"]
[PlyCount "26"]
[EventDate "2022.??.??"]
[TimeControl "60"]

{[%evp 16,26,15,25,27,29,26,31,93,-89,-78,-288,-281]} 1. d4 {[%emt 0:00:06]}
Nf6 {[%emt 0:00:18]} 2. c4 {[%emt 0:00:16]} e6 {[%emt 0:00:17]} 3. g3 {[%emt 0:
00:00]} c5 {[%emt 0:04:07]} 4. Nf3 {[%emt 0:03:03]} cxd4 {[%emt 0:00:52]} 5.
Nxd4 {[%emt 0:01:35]} d5 {[%emt 0:00:30]} 6. Bg2 {[%emt 0:02:30]} e5 {[%emt 0:
00:00]} 7. Nf3 {[%emt 0:07:25]} d4 {[%emt 0:00:19]} 8. O-O {[%emt 0:04:58]} Nc6
{[%emt 0:01:47]} 9. e3 {[%emt 0:08:32]} Bg4 {[%emt 0:12:16] [#] ...e4 is the
strong threat. E01: Catalan: Early deviations.} 10. Qb3 {[%emt 0:23:00]} Qc7 {
[%emt 0:05:45]} 11. exd4 {[%emt 0:06:21] [#]} e4 $146 {[%emt 0:10:43]} (11...
Bxf3 $14 12. Qxf3 Nxd4) ({Predecessor:} 11... Bxf3 12. Qxf3 Nxd4 13. Qd3 h6 14.
Nc3 Bc5 15. Nd5 Nxd5 16. Bxd5 O-O 17. Bxh6 gxh6 {1-0 (32) Svane,R (2610)
-Studer,N (2479) Skopje 2019}) 12. Ne5 $2 {[%emt 0:07:19]} (12. Bf4 $16 {
keeps the pressure on.} Bd6 13. Bxd6 Qxd6 14. Ng5 (14. Qxb7 $2 Rb8 $19)) 12...
Nxd4 $17 {[%emt 0:00:34]} 13. Qa4+ {[%emt 0:12:34] [#]} (13. Nxg4 $17 Nxb3 14.
Nxf6+ gxf6 15. axb3) 13... b5 $1 {[%emt 0:00:09] Weighted Error Value: White=0.
96/Black=0.22 (precise)} 0-1